[Event "Chinese Championship-B Women 2024"]
[Site "Liaocheng"]
[Date "2024.04.24"]
[Round "1.9"]
[White "Ma, Yuchen"]
[Black "Guo, Weibao"]
[Result "0-1"]
[WhiteElo "1586"]
[BlackElo "1954"]
[PlyCount "76"]
[EventDate "2024.04.24"]
[EventType "swiss"]
[EventCountry "CHN"]
[TimeControl "5400+30"]

1. e4 {[%emt 0:00:05]} e6 {[%emt 0:00:04]} 2. d4 {[%emt 0:00:10]} d5 {[%emt 0:00:02]} 3. Nc3 {[%emt 0:00:09]} Nf6 {[%emt 0:00:50]} 4. e5 {[%emt 0:00:48]} Nfd7 {[%emt 0:00:03]} 5. Bd3 {[%emt 0:01:00]} c5 {[%emt 0:00:39]} 6. Be3 {[%emt 0:01:57]} Nc6 {[%emt 0:00:53]} 7. Bb5 {[%emt 0:00:59]} cxd4 {[%emt 0:01:19]} 8. Bxd4 {[%emt 0:00:35]} a6 {[%emt 0:00:44]} 9. Bxc6 {[%emt 0:04:49]} bxc6 {[%emt 0:00:01]} 10. Nce2 {[%emt 0:02:59]} c5 {[%emt 0:00:23]} 11. Bc3 {[%emt 0:01:22]} d4 {[%emt 0:00:18]} 12. Bd2 {[%emt 0:01:11]} Nxe5 {[%emt 0:00:20]} 13. Bf4 {[%emt 0:00:46]} Ng6 {[%emt 0:00:28]} 14. Bg3 {[%emt 0:07:00]} Bd6 {[%emt 0:01:21]} 15. Nf3 {[%emt 0:00:50]} Bb7 {[%emt 0:00:35]} 16. Qd3 {[%emt 0:06:06]} e5 {[%emt 0:01:00]} 17. Qf5 {[%emt 0:01:16]} O-O {[%emt 0:03:26]} 18. O-O {[%emt 0:01:15]} Qc7 {[%emt 0:02:51]} 19. Nd2 {[%emt 0:02:06]} Nf4 {[%emt 0:01:14]} 20. Bxf4 {[%emt 0:03:21]} exf4 {[%emt 0:00:01]} 21. Nc4 {[%emt 0:00:43]} f3 {[%emt 0:01:38]} 22. Ng3 {[%emt 0:05:17]} fxg2 {[%emt 0:00:51]} 23. Rfe1 {[%emt 0:00:33]} Bxg3 {[%emt 1:22:59]} 24. fxg3 {[%emt 0:00:44]} Rae8 {[%emt 0:00:00]} 25. Ne5 {[%emt 0:56:59]} Re6 {[%emt 0:00:00]} 26. Nd3 {[%emt 0:00:30]} Rc6 {[%emt 0:00:00]} 27. Nf4 {[%emt 0:00:00]} Rf6 {[%emt 0:00:00]} 28. Qg5 {[%emt 0:00:00]} h6 {[%emt 0:00:00]} 29. Qg4 {[%emt 0:00:00]} Qb6 {[%emt 0:03:00]} 30. Nd3 {[%emt 0:00:00]} c4 {[%emt 0:00:30]} 31. h3 {[%emt 0:00:00]} cxd3 32. cxd3 {[%emt 0:00:00]} Qxb2 33. Qe2 {[%emt 0:03:30]} Rf1+ {[%emt 0:01:30]} 34. Rxf1 {[%emt 0:00:00]} Qxe2 {[%emt 0:00:30]} 35. Rfe1 {[%emt 0:00:00]} Qxd3 {[%emt 0:00:00]} 36. Rad1 {[%emt 0:00:00]} Qxg3 {[%emt 0:00:00]} 37. Rxd4 {[%emt 0:00:00]} Qxe1+ {[%emt 0:00:00]} 38. Kh2 {[%emt 0:00:00]} g1=Q# {[%emt 0:00:00]} 0-1

[Event "Chinese Championship-B Women 2024"]
[Site "Liaocheng"]
[Date "2024.04.24"]
[Round "1.10"]
[White "Wang, Xiaoyan"]
[Black "Liang, Chenzhuo"]
[Result "1-0"]
[WhiteElo "1932"]
[BlackElo "1582"]
[PlyCount "32"]
[EventDate "2024.04.24"]
[EventType "swiss"]
[EventCountry "CHN"]
[TimeControl "5400+30"]

1. d4 {[%emt 0:00:04]} d5 {[%emt 0:00:06]} 2. c4 {[%emt 0:00:04]} e6 {[%emt 0:00:06]} 3. Nc3 {[%emt 0:00:07]} Be7 {[%emt 0:00:05]} 4. Nf3 {[%emt 0:01:00]} Nf6 {[%emt 0:00:13]} 5. Bg5 {[%emt 0:00:17]} h6 {[%emt 0:00:10]} 6. Bh4 {[%emt 0:00:03]} O-O {[%emt 0:00:10]} 7. e3 {[%emt 0:00:07]} b6 {[%emt 1:33:10]} 8. Be2 {[%emt 1:32:48]} Bb7 {[%emt 0:00:30]} 9. Bxf6 {[%emt 0:00:00]} Bxf6 {[%emt 0:00:00]} 10. cxd5 {[%emt 0:01:00]} exd5 {[%emt 0:00:00]} 11. b4 {[%emt 0:00:30]} Nd7 {[%emt 0:01:30]} 12. b5 {[%emt 0:00:30]} Be7 {[%emt 0:00:30]} 13. O-O {[%emt 0:00:30]} Nf6 {[%emt 0:00:30]} 14. a4 {[%emt 0:00:30]} Rc8 {[%emt 0:00:30]} 15. Qb3 {[%emt 0:00:30]} Bd6 {[%emt 0:00:30]} 16. a5 {[%emt 0:00:00]} Qe7 {[%emt 0:00:00]} 1-0

[Event "Chinese Championship-B Women 2024"]
[Site "Liaocheng"]
[Date "2024.04.24"]
[Round "1.11"]
[White "Cao, Youjia"]
[Black "Jiang, Tianyu"]
[Result "0-1"]
[WhiteElo "1579"]
[BlackElo "1929"]
[PlyCount "88"]
[EventDate "2024.04.24"]
[EventType "swiss"]
[EventCountry "CHN"]
[TimeControl "5400+30"]

1. e4 {[%emt 0:01:23]} c5 {[%emt 0:00:06]} 2. Nf3 {[%emt 0:01:04]} e6 {[%emt 0:00:06]} 3. d4 {[%emt 0:00:06]} cxd4 {[%emt 0:00:06]} 4. Nxd4 {[%emt 0:00:04]} Nc6 {[%emt 0:00:05]} 5. Nc3 {[%emt 0:03:20]} Qc7 {[%emt 0:00:54]} 6. Nxc6 {[%emt 0:06:16]} bxc6 {[%emt 0:02:25]} 7. Bd3 {[%emt 0:01:19]} Nf6 {[%emt 0:02:37]} 8. O-O {[%emt 0:01:07]} Be7 {[%emt 0:00:55]} 9. f4 {[%emt 0:01:24]} d5 {[%emt 0:03:59]} 10. Kh1 {[%emt 0:11:32]} O-O {[%emt 0:03:37]} 11. Rf3 {[%emt 0:13:45]} Rd8 {[%emt 1:21:10]} 12. Bd2 {[%emt 0:55:10]} d4 {[%emt 0:00:00]} 13. Na4 {[%emt 0:00:00]} e5 {[%emt 0:00:00]} 14. f5 {[%emt 0:00:00]} c5 {[%emt 0:00:00]} 15. b3 {[%emt 0:00:00]} c4 {[%emt 0:00:00]} 16. Bxc4 {[%emt 0:00:00]} Nxe4 {[%emt 0:00:00]} 17. Rf1 {[%emt 0:00:00]} Bf6 {[%emt 0:00:00]} 18. Bb4 {[%emt 0:00:00]} a5 {[%emt 0:00:00]} 19. Ba3 {[%emt 0:00:00]} Bb7 {[%emt 0:00:00]} 20. Qe2 {[%emt 0:00:00]} Nd6 {[%emt 0:00:00]} 21. Bxd6 {[%emt 0:00:00]} Qxd6 {[%emt 0:00:00]} 22. Qh5 {[%emt 0:00:00]} Rd7 {[%emt 0:00:00]} 23. Rad1 {[%emt 0:00:21]} Rc8 {[%emt 0:00:00]} 24. Rd3 {[%emt 0:05:39]} Rxc4 {[%emt 0:00:00]} 25. bxc4 {[%emt 0:00:00]} Qc6 {[%emt 0:00:00]} 26. Qe2 {[%emt 0:00:04]} Qxa4 {[%emt 0:00:00]} 27. Rb3 {[%emt 0:00:05]} h6 {[%emt 0:08:00]} 28. Rfb1 {[%emt 0:00:39]} Qc6 {[%emt 0:00:00]} 29. Rb6 {[%emt 0:00:39]} Qe4 {[%emt 0:00:00]} 30. Qf2 {[%emt 0:00:50]} Bg5 {[%emt 0:00:30]} 31. c5 {[%emt 0:00:30]} Rc7 {[%emt 0:00:11]} 32. R6b5 {[%emt 0:00:26]} a4 {[%emt 0:00:45]} 33. a3 {[%emt 0:00:39]} Kh7 {[%emt 0:00:16]} 34. h3 {[%emt 0:00:29]} Be3 35. Qe2 {[%emt 0:00:30]} Ba6 {[%emt 0:01:19]} 36. Qf1 {[%emt 0:00:34]} Bxb5 {[%emt 0:00:24]} 37. Rxb5 {[%emt 0:00:05]} Qxc2 {[%emt 0:00:16]} 38. Rb1 {[%emt 0:00:20]} Rxc5 {[%emt 0:00:06]} 39. Rb7 {[%emt 0:00:27]} Qe4 {[%emt 0:00:22]} 40. Rb1 {[%emt 0:00:06]} Qxb1 {[%emt 0:00:26]} 41. Qxb1 {[%emt 0:00:05]} Rc1+ {[%emt 0:00:05]} 42. Qxc1 {[%emt 0:00:04]} Bxc1 {[%emt 0:00:05]} 43. Kg1 {[%emt 0:00:02]} Bxa3 {[%emt 0:00:09]} 44. Kf2 {[%emt 0:00:02]} Bb2 {[%emt 0:00:08]} 0-1

[Event "Chinese Championship-B Women 2024"]
[Site "Liaocheng"]
[Date "2024.04.24"]
[Round "1.12"]
[White "Zhao, Chenyu"]
[Black "Tian, Jiaxin"]
[Result "1-0"]
[WhiteElo "1909"]
[BlackElo "1577"]
[PlyCount "73"]
[EventDate "2024.04.24"]
[EventType "swiss"]
[EventCountry "CHN"]
[TimeControl "5400+30"]

1. e4 {[%emt 0:00:08]} c6 {[%emt 0:00:08]} 2. d4 {[%emt 0:00:32]} d5 {[%emt 0:00:08]} 3. Nc3 {[%emt 0:00:40]} dxe4 {[%emt 0:00:10]} 4. Nxe4 {[%emt 0:00:06]} Nf6 {[%emt 0:00:14]} 5. Nxf6+ {[%emt 0:00:05]} exf6 {[%emt 0:00:10]} 6. Be3 {[%emt 0:00:13]} Bd6 {[%emt 0:00:12]} 7. Bd3 {[%emt 0:00:06]} O-O {[%emt 0:00:08]} 8. Ne2 {[%emt 0:00:05]} Re8 {[%emt 0:00:30]} 9. O-O {[%emt 0:00:08]} Qc7 {[%emt 0:00:16]} 10. h3 {[%emt 0:00:52]} Nd7 {[%emt 0:00:30]} 11. c4 {[%emt 0:00:15]} Nf8 {[%emt 0:00:38]} 12. Qd2 {[%emt 0:03:29]} Ne6 {[%emt 0:03:14]} 13. Rac1 {[%emt 0:03:37]} Bd7 {[%emt 0:02:27]} 14. Rfd1 {[%emt 0:10:13]} Rad8 {[%emt 0:02:04]} 15. b4 {[%emt 0:03:02]} Nf8 {[%emt 0:06:45]} 16. c5 {[%emt 0:04:28]} Be7 {[%emt 0:00:46]} 17. b5 {[%emt 0:07:13]} Be6 {[%emt 0:01:39]} 18. bxc6 {[%emt 0:01:01]} bxc6 {[%emt 0:00:21]} 19. Nf4 {[%emt 0:09:05]} Qd7 {[%emt 0:06:39]} 20. Qc2 {[%emt 0:00:56]} g6 {[%emt 1:13:31]} 21. Qa4 {[%emt 0:05:50]} f5 {[%emt 0:00:00]} 22. d5 {[%emt 0:04:04]} Bxd5 {[%emt 0:00:00]} 23. Bc4 {[%emt 0:45:52]} Rb8 {[%emt 0:00:00]} 24. Bxd5 {[%emt 0:00:00]} cxd5 {[%emt 0:00:00]} 25. c6 {[%emt 0:00:00]} Qc8 {[%emt 0:00:00]} 26. Nxd5 {[%emt 0:00:00]} a6 {[%emt 0:00:00]} 27. c7 {[%emt 0:00:00]} Rb2 {[%emt 0:00:00]} 28. Qxe8 {[%emt 0:00:00]} Qxe8 {[%emt 0:00:00]} 29. c8=Q {[%emt 0:00:00]} Qb5 {[%emt 0:00:00]} 30. Nxe7+ {[%emt 0:00:00]} Kg7 {[%emt 0:00:00]} 31. Bd4+ {[%emt 0:00:00]} f6 {[%emt 0:00:00]} 32. Bxf6+ {[%emt 0:00:00]} Kxf6 {[%emt 0:00:00]} 33. Qxf8+ {[%emt 0:00:00]} Kg5 {[%emt 0:00:00]} 34. h4+ {[%emt 0:00:00]} Kxh4 {[%emt 0:00:00]} 35. Qh6+ {[%emt 0:00:00]} Kg4 {[%emt 0:00:00]} 36. Rd4+ {[%emt 0:00:00]} f4 {[%emt 0:00:00]} 37. Rxf4# {[%emt 0:00:00]} 1-0

[Event "Chinese Championship-B Women 2024"]
[Site "Liaocheng"]
[Date "2024.04.24"]
[Round "1.13"]
[White "Fang, Yiwen"]
[Black "Gao, Muziyan"]
[Result "0-1"]
[WhiteElo "1569"]
[BlackElo "1891"]
[PlyCount "40"]
[EventDate "2024.04.24"]
[EventType "swiss"]
[EventCountry "CHN"]
[TimeControl "5400+30"]

1. d4 {[%emt 0:00:07]} Nf6 {[%emt 0:00:09]} 2. c4 {[%emt 0:00:04]} e6 {[%emt 0:00:06]} 3. Nc3 {[%emt 0:00:04]} Bb4 {[%emt 0:00:12]} 4. Qc2 {[%emt 1:32:15]} d5 {[%emt 0:00:07]} 5. cxd5 {[%emt 0:00:00]} exd5 {[%emt 0:00:07]} 6. Bg5 {[%emt 0:00:00]} h6 {[%emt 0:10:49]} 7. Bh4 {[%emt 0:00:00]} c5 {[%emt 0:07:24]} 8. dxc5 {[%emt 0:00:00]} g5 9. Bg3 {[%emt 0:02:30]} Nc6 {[%emt 0:20:50]} 10. O-O-O {[%emt 0:00:00]} Qa5 {[%emt 0:06:10]} 11. Kb1 {[%emt 0:01:00]} Bxc3 {[%emt 0:03:57]} 12. Qxc3 {[%emt 0:00:00]} Bf5+ {[%emt 0:00:45]} 13. Ka1 {[%emt 0:00:00]} Nb4 {[%emt 0:46:24]} 14. a3 {[%emt 0:00:00]} Qa4 {[%emt 0:00:30]} 15. Rc1 {[%emt 0:00:00]} Nc2+ 16. Ka2 {[%emt 0:02:30]} d4 {[%emt 0:01:00]} 17. Qf3 {[%emt 0:00:00]} Qc4+ {[%emt 0:00:00]} 18. Qb3 {[%emt 0:01:00]} Nb4+ {[%emt 0:00:00]} 19. axb4 {[%emt 0:00:00]} Qxc1 {[%emt 0:00:00]} 20. Qa4+ {[%emt 0:01:00]} Bd7 {[%emt 0:00:00]} 0-1

[Event "Chinese Championship-B Women 2024"]
[Site "Liaocheng"]
[Date "2024.04.24"]
[Round "1.14"]
[White "Men, Jiayi"]
[Black "Li, Hanyu(Bj)"]
[Result "1-0"]
[WhiteElo "1845"]
[BlackElo "1553"]
[PlyCount "121"]
[EventDate "2024.04.24"]
[EventType "swiss"]
[EventCountry "CHN"]
[TimeControl "5400+30"]

1. d4 {[%emt 0:00:04]} d5 {[%emt 0:00:10]} 2. Nf3 {[%emt 0:00:19]} Nf6 {[%emt 0:00:09]} 3. g3 {[%emt 0:00:36]} e6 {[%emt 0:00:08]} 4. Bg2 {[%emt 0:00:30]} c6 {[%emt 0:00:18]} 5. c4 {[%emt 0:00:52]} Be7 {[%emt 0:00:12]} 6. O-O {[%emt 0:00:16]} O-O {[%emt 0:00:05]} 7. Nc3 {[%emt 0:00:27]} Nbd7 {[%emt 0:00:25]} 8. b3 {[%emt 0:01:59]} b6 {[%emt 0:00:16]} 9. Bb2 {[%emt 0:02:12]} Bb7 {[%emt 0:00:09]} 10. Ne5 {[%emt 0:01:28]} Qc7 {[%emt 0:02:30]} 11. Nxd7 {[%emt 0:06:37]} Qxd7 {[%emt 0:00:27]} 12. cxd5 {[%emt 0:04:29]} cxd5 {[%emt 0:02:31]} 13. Qd3 {[%emt 0:01:02]} Rac8 {[%emt 0:02:28]} 14. Rac1 {[%emt 0:00:55]} Rfd8 {[%emt 0:04:53]} 15. Rfd1 {[%emt 0:04:22]} h6 {[%emt 0:07:06]} 16. e3 {[%emt 0:03:20]} Rc7 {[%emt 0:10:53]} 17. Nb5 {[%emt 0:10:08]} Rxc1 {[%emt 0:02:20]} 18. Rxc1 {[%emt 0:02:11]} Ba6 {[%emt 0:12:06]} 19. a4 {[%emt 0:00:29]} Bd6 {[%emt 0:04:48]} 20. Bf1 {[%emt 0:02:36]} Ne4 {[%emt 0:09:55]} 21. Qd1 {[%emt 0:02:18]} Bxb5 {[%emt 0:02:40]} 22. Bxb5 {[%emt 0:02:23]} Qe7 {[%emt 0:04:48]} 23. Bd3 {[%emt 0:06:24]} f5 {[%emt 0:03:43]} 24. f3 {[%emt 0:06:33]} Nf6 {[%emt 0:01:33]} 25. Qe2 {[%emt 0:01:02]} Qe8 {[%emt 0:01:46]} 26. e4 {[%emt 0:02:26]} fxe4 {[%emt 0:02:57]} 27. fxe4 {[%emt 0:00:06]} dxe4 {[%emt 0:01:10]} 28. Bxe4 {[%emt 0:00:26]} Nxe4 {[%emt 0:03:14]} 29. Qxe4 {[%emt 0:00:42]} Qe7 {[%emt 0:01:05]} 30. Re1 {[%emt 0:01:07]} Re8 {[%emt 0:00:36]} 31. d5 {[%emt 0:04:19]} e5 {[%emt 0:01:07]} 32. Rf1 {[%emt 0:09:03]} Rf8 {[%emt 0:02:00]} 33. Rxf8+ {[%emt 0:03:02]} Qxf8 {[%emt 0:01:29]} 34. Kg2 {[%emt 0:01:03]} Qf6 {[%emt 0:01:32]} 35. Bc3 {[%emt 0:04:12]} h5 {[%emt 0:04:52]} 36. b4 {[%emt 0:04:11]} g5 {[%emt 0:02:34]} 37. h3 {[%emt 0:01:24]} Kg7 {[%emt 0:00:40]} 38. Bd2 {[%emt 0:03:09]} Be7 {[%emt 0:02:28]} 39. g4 {[%emt 0:03:59]} hxg4 {[%emt 0:01:01]} 40. hxg4 {[%emt 0:00:40]} Bd6 {[%emt 0:01:26]} 41. Be3 {[%emt 0:03:10]} Bc7 {[%emt 0:02:20]} 42. Qc4 {[%emt 0:01:10]} Bd6 {[%emt 0:01:10]} 43. a5 {[%emt 0:01:25]} bxa5 {[%emt 0:00:41]} 44. bxa5 {[%emt 0:00:01]} Qh6 {[%emt 0:01:56]} 45. Bxa7 {[%emt 0:01:20]} e4 {[%emt 0:01:27]} 46. Bg1 {[%emt 0:00:35]} Qh4 {[%emt 0:00:47]} 47. Qd4+ {[%emt 0:00:50]} Kg8 {[%emt 0:00:21]} 48. Qxe4 {[%emt 0:00:17]} Qg3+ {[%emt 0:00:08]} 49. Kf1 {[%emt 0:00:07]} Qh3+ {[%emt 0:00:17]} 50. Ke2 {[%emt 0:00:12]} Qa3 {[%emt 0:00:30]} 51. Qe8+ {[%emt 0:00:41]} Kh7 {[%emt 0:00:09]} 52. Qf7+ {[%emt 0:00:39]} Kh6 {[%emt 0:00:11]} 53. Qh5+ {[%emt 0:00:05]} Kg7 {[%emt 0:00:10]} 54. Bd4+ {[%emt 0:00:26]} Kf8 {[%emt 0:00:10]} 55. Qh6+ {[%emt 0:00:52]} Ke8 {[%emt 0:00:24]} 56. Qg6+ {[%emt 0:00:22]} Kd7 {[%emt 0:00:27]} 57. Qf7+ {[%emt 0:01:23]} Be7 {[%emt 0:01:14]} 58. Qe6+ {[%emt 0:00:06]} Ke8 {[%emt 0:00:50]} 59. Qg6+ {[%emt 0:00:12]} Kd7 {[%emt 0:00:08]} 60. Qc6+ {[%emt 0:00:07]} Kd8 {[%emt 0:00:13]} 61. Bb6# {[%emt 0:00:04]} 1-0

[Event "Chinese Championship-B Women 2024"]
[Site "Liaocheng"]
[Date "2024.04.24"]
[Round "1.15"]
[White "Xia, Miaoyan"]
[Black "Liu, Youyin"]
[Result "0-1"]
[WhiteElo "1551"]
[BlackElo "1840"]
[PlyCount "166"]
[EventDate "2024.04.24"]
[EventType "swiss"]
[EventCountry "CHN"]
[TimeControl "5400+30"]

1. e4 {[%emt 0:00:05]} c6 {[%emt 0:00:06]} 2. d4 {[%emt 0:00:06]} d5 {[%emt 0:00:06]} 3. e5 {[%emt 0:00:08]} Bf5 {[%emt 0:00:06]} 4. c4 {[%emt 0:00:07]} e6 {[%emt 0:01:04]} 5. Nc3 {[%emt 0:00:11]} dxc4 {[%emt 0:02:47]} 6. Bxc4 {[%emt 0:00:27]} Ne7 {[%emt 0:01:01]} 7. Nge2 {[%emt 0:01:35]} Nd5 {[%emt 0:00:24]} 8. Ng3 {[%emt 0:01:55]} Bg6 {[%emt 0:01:30]} 9. Nce4 {[%emt 0:03:36]} Nb6 {[%emt 0:11:11]} 10. Be2 {[%emt 0:06:43]} Bb4+ {[%emt 0:01:27]} 11. Kf1 {[%emt 0:01:16]} N8d7 {[%emt 0:02:28]} 12. Bg5 {[%emt 0:05:02]} Qc7 {[%emt 0:05:15]} 13. a3 {[%emt 0:01:49]} Be7 {[%emt 0:01:27]} 14. Bxe7 {[%emt 0:01:38]} Kxe7 {[%emt 0:00:09]} 15. Bh5 {[%emt 0:05:32]} Bxh5 {[%emt 0:11:33]} 16. Qxh5 {[%emt 1:08:20]} h6 {[%emt 0:57:56]} 17. Nd6 {[%emt 0:00:00]} g6 {[%emt 0:00:00]} 18. Qh4+ {[%emt 0:00:00]} Kf8 {[%emt 0:00:00]} 19. Nge4 {[%emt 0:00:00]} Nc8 {[%emt 0:00:00]} 20. Qf4 {[%emt 0:00:00]} Nxd6 {[%emt 0:00:00]} 21. Nxd6 {[%emt 0:00:00]} Nb6 {[%emt 0:00:00]} 22. h4 {[%emt 0:00:00]} Nd5 {[%emt 0:00:00]} 23. Qf3 {[%emt 0:00:00]} h5 {[%emt 0:00:00]} 24. Rh3 {[%emt 0:00:00]} Kg7 {[%emt 0:00:00]} 25. g4 {[%emt 0:00:00]} Raf8 {[%emt 0:00:00]} 26. g5 {[%emt 0:00:00]} Qb6 {[%emt 0:00:00]} 27. Qe4 {[%emt 0:00:00]} Ne7 {[%emt 0:00:00]} 28. b4 {[%emt 0:00:00]} Nf5 {[%emt 0:00:00]} 29. Nxf5+ {[%emt 0:00:00]} gxf5 {[%emt 0:00:00]} 30. Qd3 {[%emt 0:00:00]} Rd8 {[%emt 0:00:00]} 31. Rd1 {[%emt 0:00:00]} Rd5 {[%emt 0:00:00]} 32. Qc4 {[%emt 0:00:00]} Qb5 {[%emt 0:00:00]} 33. Qxb5 {[%emt 0:00:00]} Rxb5 {[%emt 0:00:00]} 34. Rc3 {[%emt 0:00:00]} Rd8 {[%emt 0:00:59]} 35. Ke2 {[%emt 0:00:00]} Rbd5 {[%emt 0:01:22]} 36. Rcd3 {[%emt 0:00:00]} a5 {[%emt 0:00:37]} 37. bxa5 {[%emt 0:00:00]} c5 {[%emt 0:07:32]} 38. dxc5 {[%emt 0:00:37]} Rxe5+ {[%emt 0:00:00]} 39. Kf1 {[%emt 0:00:37]} Rxd3 {[%emt 0:00:00]} 40. Rxd3 {[%emt 0:00:07]} Rxc5 {[%emt 0:00:00]} 41. Rb3 {[%emt 0:00:07]} Rxa5 {[%emt 0:00:00]} 42. Rxb7 {[%emt 0:00:07]} Rxa3 {[%emt 0:00:00]} 43. Kg2 {[%emt 0:00:23]} Ra4 {[%emt 0:00:00]} 44. Kg3 {[%emt 0:00:27]} Rg4+ {[%emt 0:00:00]} 45. Kh3 {[%emt 0:00:59]} f4 {[%emt 0:00:00]} 46. Ra7 {[%emt 0:02:37]} Kg6 {[%emt 0:00:08]} 47. Ra5 {[%emt 0:00:29]} Kg7 {[%emt 0:01:43]} 48. Rb5 {[%emt 0:00:24]} Kg6 {[%emt 0:00:32]} 49. Ra5 {[%emt 0:00:31]} f3 {[%emt 0:01:36]} 50. Ra3 {[%emt 0:00:18]} Rf4 {[%emt 0:00:07]} 51. Ra5 {[%emt 0:04:18]} Rf5 {[%emt 0:00:47]} 52. Ra4 {[%emt 0:01:23]} f6 {[%emt 0:00:44]} 53. Ra6 {[%emt 0:01:57]} fxg5 {[%emt 0:00:48]} 54. Rxe6+ {[%emt 0:01:15]} Kf7 {[%emt 0:00:51]} 55. Rb6 {[%emt 0:00:24]} g4+ {[%emt 0:00:15]} 56. Kg3 {[%emt 0:00:07]} Rf6 {[%emt 0:00:08]} 57. Rb5 {[%emt 0:00:19]} Kg6 {[%emt 0:00:06]} 58. Rg5+ {[%emt 0:00:15]} Kh6 {[%emt 0:00:13]} 59. Ra5 {[%emt 0:00:08]} Rd6 {[%emt 0:00:35]} 60. Ra1 {[%emt 0:00:18]} Kg6 {[%emt 0:00:19]} 61. Rb1 {[%emt 0:00:23]} Re6 {[%emt 0:00:17]} 62. Ra1 {[%emt 0:00:52]} Kf5 {[%emt 0:00:07]} 63. Rb1 {[%emt 0:01:27]} Re5 {[%emt 0:00:39]} 64. Rb2 {[%emt 0:01:04]} Ke4 {[%emt 0:01:25]} 65. Ra2 {[%emt 0:00:20]} Kd3 {[%emt 0:00:13]} 66. Ra3+ {[%emt 0:00:45]} Ke2 {[%emt 0:00:11]} 67. Ra2+ {[%emt 0:00:07]} Kd3 {[%emt 0:01:27]} 68. Ra3+ {[%emt 0:00:28]} Kc2 {[%emt 0:00:34]} 69. Ra2+ {[%emt 0:01:14]} Kb3 {[%emt 0:00:41]} 70. Ra8 {[%emt 0:00:33]} Rd5 {[%emt 0:00:43]} 71. Rh8 {[%emt 0:00:23]} Kc3 {[%emt 0:00:10]} 72. Ra8 {[%emt 0:00:15]} Kd2 {[%emt 0:00:34]} 73. Ra2+ {[%emt 0:00:06]} Ke1 {[%emt 0:00:07]} 74. Ra1+ {[%emt 0:00:05]} Ke2 {[%emt 0:00:46]} 75. Ra2+ {[%emt 0:00:08]} Kd3 {[%emt 0:00:56]} 76. Ra3+ {[%emt 0:00:23]} Ke4 {[%emt 0:00:16]} 77. Ra2 {[%emt 0:00:12]} Rd1 {[%emt 0:00:30]} 78. Kh2 {[%emt 0:01:19]} Kd3 {[%emt 0:00:41]} 79. Ra5 {[%emt 0:00:55]} Ke2 {[%emt 0:00:27]} 80. Rxh5 {[%emt 0:01:43]} Kxf2 {[%emt 0:00:09]} 81. Ra5 {[%emt 0:00:13]} g3+ {[%emt 0:00:11]} 82. Kh3 {[%emt 0:00:11]} g2 {[%emt 0:00:30]} 83. Ra2+ {[%emt 0:00:21]} Kf1 {[%emt 0:00:10]} 0-1

[Event "Chinese Championship-B Women 2024"]
[Site "Liaocheng"]
[Date "2024.04.24"]
[Round "2.1"]
[White "Wang, Chuqiao"]
[Black "Wu, Yiting"]
[Result "1-0"]
[WhiteElo "2302"]
[BlackElo "1721"]
[PlyCount "91"]
[EventDate "2024.04.24"]
[EventType "swiss"]
[EventCountry "CHN"]
[TimeControl "5400+30"]

1. d4 {[%emt 0:00:04]} d5 {[%emt 0:00:04]} 2. c4 {[%emt 0:00:08]} e6 {[%emt 0:00:14]} 3. Nc3 {[%emt 0:00:05]} Nf6 {[%emt 0:00:08]} 4. cxd5 {[%emt 0:00:09]} exd5 {[%emt 0:00:04]} 5. Bg5 {[%emt 0:00:05]} c6 {[%emt 0:00:13]} 6. e3 {[%emt 0:00:06]} h6 {[%emt 0:00:05]} 7. Bh4 {[%emt 0:00:07]} Be7 {[%emt 0:00:08]} 8. Bd3 {[%emt 0:00:11]} O-O {[%emt 0:00:08]} 9. Qc2 {[%emt 0:00:11]} Nbd7 {[%emt 0:01:05]} 10. Nge2 {[%emt 0:00:49]} Nh5 {[%emt 0:02:16]} 11. Bxe7 {[%emt 0:00:21]} Qxe7 {[%emt 0:00:04]} 12. O-O {[%emt 0:01:26]} Re8 {[%emt 0:01:01]} 13. a3 {[%emt 0:02:19]} Nf8 {[%emt 0:04:14]} 14. Rae1 {[%emt 0:01:23]} Bd7 {[%emt 0:02:39]} 15. Ng3 {[%emt 0:06:16]} Nxg3 {[%emt 0:00:43]} 16. hxg3 {[%emt 0:01:59]} Qg5 {[%emt 0:07:02]} 17. Na4 {[%emt 0:00:54]} Rad8 {[%emt 0:02:29]} 18. b4 {[%emt 0:00:39]} a6 {[%emt 0:00:36]} 19. Nc5 {[%emt 0:01:30]} Bc8 {[%emt 0:03:40]} 20. a4 {[%emt 0:00:24]} Nd7 {[%emt 0:05:33]} 21. b5 {[%emt 0:01:08]} cxb5 {[%emt 0:05:52]} 22. axb5 {[%emt 0:00:17]} a5 {[%emt 0:02:15]} 23. Nxd7 {[%emt 0:00:48]} Rxd7 {[%emt 0:02:07]} 24. b6 {[%emt 0:00:24]} Rd6 {[%emt 0:03:02]} 25. Qc5 {[%emt 0:01:05]} Qd8 {[%emt 0:02:54]} 26. Rb1 {[%emt 0:02:02]} Rc6 {[%emt 0:09:39]} 27. Qxa5 {[%emt 0:00:08]} Ree6 {[%emt 0:00:42]} 28. Rfc1 {[%emt 0:03:02]} g6 {[%emt 0:08:31]} 29. Bb5 {[%emt 0:01:01]} Rxc1+ {[%emt 0:09:24]} 30. Rxc1 {[%emt 0:00:05]} Kg7 {[%emt 0:02:49]} 31. Rc7 {[%emt 0:01:14]} Re7 {[%emt 0:00:56]} 32. Rxe7 {[%emt 0:04:27]} Qxe7 {[%emt 0:00:02]} 33. Qc3 {[%emt 0:00:10]} Qd8 {[%emt 0:02:16]} 34. Qc5 {[%emt 0:00:32]} Be6 {[%emt 0:02:18]} 35. Bd3 {[%emt 0:01:22]} Qd7 {[%emt 0:04:22]} 36. e4 {[%emt 0:00:53]} Qd8 {[%emt 0:04:41]} 37. f4 {[%emt 0:04:12]} Qd7 {[%emt 0:01:57]} 38. Bb5 {[%emt 0:01:27]} Qd8 {[%emt 0:00:24]} 39. Qc7 {[%emt 0:01:17]} Qa8 {[%emt 0:01:54]} 40. exd5 {[%emt 0:01:11]} Bf5 {[%emt 0:02:35]} 41. Qe5+ {[%emt 0:00:13]} Kh7 {[%emt 0:00:21]} 42. d6 {[%emt 0:01:17]} Qd8 {[%emt 0:03:23]} 43. Qe7 {[%emt 0:01:00]} Qxb6 {[%emt 0:00:45]} 44. Qxf7+ {[%emt 0:00:05]} Kh8 {[%emt 0:00:05]} 45. Qf6+ {[%emt 0:00:05]} Kh7 {[%emt 0:00:23]} 46. Bc4 {[%emt 0:00:09]} 1-0